bitfinex-derivatives/quotes_BNBF0:USTF0_20250630
["timestamp","ask_amount","ask_price","bid_price","bid_amount"]
[1751315641191,0.26368331,660.49,659.75,1.14333835]
[1751315641393,0.26368331,660.49,659.76,1.14333835]
[1751315641690,0.26368331,660.49,659.77,1.14333835]
[1751315641889,0.26368331,660.49,659.78,1.14333835]
[1751315642193,0.26368331,660.49,659.79,1.14333835]
[1751315642389,0.26368331,660.49,659.8,1.14333835]
[1751315642594,0.26368331,660.49,659.81,1.14333835]
[1751315642791,0.26368331,660.49,659.82,1.14333835]
[1751315642996,0.26368331,660.49,659.83,1.14333835]
[1751315643294,0.26368331,660.49,659.84,1.14333835]
[1751315643496,0.26368331,660.49,659.85,1.14333835]
[1751315643693,0.26368331,660.49,659.65,1.1284477]
[1751315643694,0.26368331,660.49,659.86,1.14333835]
[1751315643893,0.26368331,660.49,659.87,1.14333835]
[1751315644196,0.26368331,660.49,659.88,1.14333835]
[1751315644492,0.26368331,660.49,659.89,1.14333835]
[1751315644697,0.26368331,660.49,659.9,1.14333835]
[1751315644892,0.26368331,660.49,659.91,1.14333835]
[1751315645098,0.26368331,660.49,659.67,3.28]
[1751315645295,0.26368331,660.49,659.68,1.14207043]
[1751315645594,0.26368331,660.49,659.69,1.14207043]
[1751315645796,0.26368331,660.49,659.7,1.14207043]
[1751315646099,0.26368331,660.49,659.71,1.14207043]
[1751315646299,0.26368331,660.49,659.72,1.14207043]
[1751315646500,0.26368331,660.49,659.73,1.14207043]
[1751315646698,0.26368331,660.49,659.74,1.14207043]
[1751315646899,0.26368331,660.49,659.75,1.14207043]
[1751315647096,0.26368331,660.49,659.76,1.14207043]
[1751315647297,0.26368331,660.49,659.67,3.28]
[1751315647298,0.26368331,660.49,659.77,1.14207043]
[1751315647497,0.26368331,660.49,659.78,1.14207043]
[1751315647697,0.26368331,660.49,659.79,1.14207043]
[1751315647998,0.26368331,660.49,659.8,1.14207043]
[1751315648198,0.26368331,660.49,659.81,1.14207043]
[1751315648397,0.26368331,660.49,659.82,1.14207043]
[1751315648601,0.26368331,660.49,659.83,1.14207043]
[1751315648801,0.26368331,660.49,659.84,1.14207043]
[1751315649002,0.26368331,660.49,659.85,1.14207043]
[1751315649203,0.26368331,660.49,659.86,1.14207043]
[1751315649399,0.26368331,660.49,659.87,1.14207043]
[1751315649703,0.26368331,660.49,659.88,1.14207043]
[1751315650003,0.26368331,660.49,659.89,1.14207043]
[1751315650202,0.26368331,660.49,659.67,3.28]
[1751315650407,0.26368331,660.49,659.68,1.14227502]
[1751315650604,0.26368331,660.49,659.69,1.14227502]
[1751315650802,0.26368331,660.49,659.7,1.14227502]
[1751315651005,0.26368331,660.49,659.71,1.14227502]
[1751315651202,0.26368331,660.49,659.72,1.14227502]
[1751315651405,0.26368331,660.49,659.73,1.14227502]
[1751315651603,0.26368331,660.49,659.74,1.14227502]
[1751315651807,0.26368331,660.49,659.75,1.14227502]
[1751315652004,0.26368331,660.49,659.76,1.14227502]
[1751315652205,0.26368331,660.49,659.77,1.14227502]
[1751315652409,0.26368331,660.49,659.78,1.14227502]
[1751315652609,0.26368331,660.49,659.79,1.14227502]
[1751315652806,0.26368331,660.49,659.8,1.14227502]
[1751315653106,0.26368331,660.49,659.81,1.14227502]
[1751315653309,0.26368331,660.49,659.82,1.14227502]
[1751315653509,0.26368331,660.49,659.83,1.14227502]
[1751315653709,0.26368331,660.49,659.84,1.14227502]
[1751315653908,0.26368331,660.49,659.85,1.14227502]
[1751315654204,0.26368331,660.49,659.86,1.14227502]
[1751315654409,0.26368331,660.49,659.87,1.14227502]
[1751315654706,0.26368331,660.49,659.88,1.14227502]
[1751315655010,0.26368331,660.49,659.89,1.14227502]
[1751315655210,0.26368331,660.49,659.7,1.1284477]
[1751315655509,0.26368331,660.49,659.71,1.14211383]
[1751315655712,0.26368331,660.49,659.72,1.14211383]
[1751315655906,0.26368331,660.49,659.73,1.14211383]
[1751315656210,0.26368331,660.49,659.74,1.14211383]
[1751315656405,0.26368331,660.49,659.75,1.14211383]
[1751315656608,0.26368331,660.49,659.76,1.14211383]
[1751315656808,0.26368331,660.49,659.77,1.14211383]
[1751315657007,0.26368331,660.49,659.78,1.14211383]
[1751315657207,0.26368331,660.49,659.79,1.14211383]
[1751315657507,0.26368331,660.49,659.8,1.14211383]
[1751315657711,0.26368331,660.49,659.81,1.14211383]
[1751315658011,0.26368331,660.49,659.82,1.14211383]
[1751315658207,0.26368331,660.49,659.83,1.14211383]
[1751315658407,0.26368331,660.49,659.84,1.14211383]
[1751315658611,0.26368331,660.49,659.85,1.14211383]
[1751315658913,0.26368331,660.49,659.86,1.14211383]
[1751315659209,0.26368331,660.49,659.87,1.14211383]
[1751315659408,0.26368331,660.49,659.41,1.1284477]
[1751315659609,0.26368331,660.49,659.42,1.14192401]
[1751315659812,0.26368331,660.49,659.43,1.14192401]
[1751315660009,0.26368331,660.49,659.44,1.14192401]
[1751315660211,0.26368331,660.49,659.45,1.14192401]
[1751315660415,0.26368331,660.49,659.46,1.14192401]
[1751315660614,0.26368331,660.49,659.44,2.92]
[1751315660615,0.26368331,660.49,659.47,1.14192401]
[1751315660815,0.26368331,660.49,659.48,1.14192401]
[1751315661013,0.26368331,660.49,659.49,1.14192401]
[1751315661214,0.26368331,660.49,659.5,1.14192401]
[1751315661418,0.26368331,660.49,659.51,1.14192401]
[1751315661717,0.26368331,660.49,659.52,1.14192401]
[1751315661918,0.26368331,660.49,659.53,1.14192401]
[1751315662218,0.26368331,660.49,659.54,1.14192401]
[1751315662418,0.26368331,660.49,659.55,3.33792401]
[1751315662714,0.26368331,660.49,659.56,1.14192401]
[1751315663018,0.26368331,660.49,659.57,1.14192401]
[1751315663214,0.26368331,660.49,659.58,1.14192401]
[1751315663518,0.26368331,660.49,659.59,1.14192401]
[1751315663721,0.26368331,660.49,659.6,1.14192401]
[1751315664017,0.26368331,660.49,659.61,1.14192401]
[1751315664216,0.26368331,660.49,659.62,1.14192401]
[1751315664415,0.26368331,660.49,659.63,1.14192401]
[1751315664714,0.26368331,660.49,659.64,1.14192401]
[1751315664919,0.26368331,660.49,659.65,1.14192401]
[1751315665116,0.26368331,660.49,659.66,1.14192401]
[1751315665315,0.26368331,660.49,659.67,1.14192401]
[1751315665515,0.26368331,660.49,659.68,1.14192401]
[1751315665716,0.26368331,660.49,659.69,1.14192401]
[1751315665920,0.26368331,660.49,659.7,1.14192401]
[1751315666219,0.26368331,660.49,659.71,1.14192401]
[1751315666515,0.26368331,660.49,659.72,1.14192401]
[1751315666716,0.26368331,660.49,659.73,1.14192401]
[1751315666916,0.26368331,660.49,659.74,1.14192401]
[1751315667115,0.26368331,660.49,659.75,1.14192401]
[1751315667320,0.26368331,660.49,659.76,1.14192401]
[1751315667518,0.26368331,660.49,659.77,1.14192401]
[1751315667721,0.26368331,660.49,659.78,1.14192401]
[1751315667923,0.26368331,660.49,659.79,1.14192401]
[1751315668222,0.26368331,660.49,659.8,1.14192401]
[1751315668417,0.26368331,660.49,659.81,1.14192401]
[1751315668718,0.26368331,660.49,659.82,1.14192401]
[1751315668918,0.26368331,660.49,659.83,1.14192401]
[1751315669117,0.26368331,660.49,659.84,1.14192401]
[1751315669322,0.26368331,660.49,659.85,1.14192401]
[1751315669521,0.26368331,660.49,659.55,2.196]
[1751315669718,0.26368331,660.49,659.56,1.14198095]
[1751315669923,0.26368331,660.49,659.57,1.14198095]
[1751315670120,0.26368331,660.49,659.58,1.14198095]
[1751315670320,0.26368331,660.49,659.59,1.14198095]
[1751315670619,0.26368331,660.49,659.6,1.14198095]
[1751315670819,0.26368331,660.49,659.61,1.14198095]
[1751315671022,0.26368331,660.49,659.62,1.14198095]
[1751315671224,0.26368331,660.49,659.63,1.14198095]
[1751315671425,0.26368331,660.49,659.64,1.14198095]
[1751315671622,0.26368331,660.49,659.65,1.14198095]
[1751315671921,0.26368331,660.49,659.66,1.14198095]
[1751315672125,0.26368331,660.49,659.67,1.14198095]
[1751315672322,0.26368331,660.49,659.68,1.14198095]
[1751315672523,0.26368331,660.49,659.69,1.14198095]
[1751315672723,0.26368331,660.49,659.7,1.14198095]
[1751315672921,0.26368331,660.49,659.71,1.14198095]
[1751315673127,0.26368331,660.49,659.72,1.14198095]
[1751315673327,0.26368331,660.49,659.73,1.14198095]
[1751315673524,0.26368331,660.49,659.74,1.14198095]
[1751315673729,0.26368331,660.49,659.75,1.14198095]
[1751315673929,0.26368331,660.49,659.76,1.14198095]
[1751315674129,0.26368331,660.49,659.77,1.14198095]
[1751315674426,0.26368331,660.49,659.78,1.14198095]
[1751315674630,0.26368331,660.49,659.79,1.14198095]
[1751315674829,0.26368331,660.49,659.8,1.14198095]
[1751315675030,0.26368331,660.49,659.81,1.14198095]
[1751315675228,0.26368331,660.49,659.82,1.14198095]
[1751315675426,0.26368331,660.49,659.83,1.14198095]
[1751315675625,0.26368331,660.49,659.84,1.14198095]
[1751315675823,0.26368331,660.49,659.85,1.14198095]
[1751315676029,0.26368331,660.49,659.86,1.14198095]
[1751315676325,0.26368331,660.49,659.87,1.14198095]
[1751315676629,0.26368331,660.49,659.88,1.14198095]
[1751315676826,0.26368331,660.49,659.89,1.14198095]
[1751315677029,0.26368331,660.49,659.9,1.14198095]
[1751315677226,0.26368331,660.49,659.91,1.14198095]
[1751315677426,0.26368331,660.49,659.92,1.14198095]
[1751315677629,0.26368331,660.49,659.93,1.14198095]
[1751315677828,0.26368331,660.49,659.61,1.1284477]
[1751315678129,0.26368331,660.49,659.62,1.14102969]
[1751315678330,0.26368331,660.49,659.63,1.14102969]
[1751315678528,0.26368331,660.49,659.64,1.14102969]
[1751315678727,0.26368331,660.49,659.65,1.14102969]
[1751315678928,0.26368331,660.49,659.66,1.14102969]
[1751315679127,0.26368331,660.49,659.67,1.14102969]
[1751315679428,0.26368331,660.49,659.68,1.14102969]
[1751315679629,0.26368331,660.49,659.69,1.14102969]
[1751315679831,0.26368331,660.49,659.7,1.14102969]
[1751315680028,0.26368331,660.49,659.71,1.14102969]
[1751315680232,0.26368331,660.49,659.72,1.14102969]
[1751315680432,0.26368331,660.49,659.73,1.14102969]
[1751315680629,3.7759625,661.15,659.74,1.14102969]
[1751315680833,3.7759625,660.99,659.75,1.14102969]
[1751315681033,0.26357147,660.6,659.76,1.14102969]
[1751315681229,3.7759625,660.99,659.77,1.14102969]
[1751315681430,0.26358145,660.69,659.78,1.14102969]
[1751315681629,0.26358145,660.69,659.79,1.14102969]
[1751315681929,0.26358145,660.69,659.8,1.14102969]
[1751315682229,0.26358145,660.69,659.81,1.14102969]
[1751315682433,0.26358145,660.69,659.82,1.14102969]
[1751315682734,0.26358145,660.69,659.83,1.14102969]
[1751315683034,0.26358145,660.69,659.84,1.14102969]
[1751315683233,0.26358145,660.69,659.85,1.14102969]
[1751315683428,0.26358145,660.69,659.86,1.14102969]
[1751315683628,0.26358145,660.69,659.87,1.14102969]
[1751315683831,0.26358145,660.69,659.88,1.14102969]
[1751315684028,0.26358145,660.69,659.64,3.2594477]
[1751315684029,0.26358145,660.69,659.89,1.14102969]
[1751315684229,0.26358145,660.69,659.9,1.14102969]
[1751315684432,0.26358145,660.69,659.91,1.14102969]
[1751315684633,0.26358145,660.69,659.92,1.14102969]
[1751315684834,0.26358145,660.69,659.93,1.14102969]
[1751315685031,0.26358145,660.69,659.94,1.14102969]
[1751315685231,0.26358145,660.69,659.95,1.14102969]
[1751315685435,0.26358145,660.69,659.96,1.14102969]
[1751315685736,0.26358145,660.69,659.97,1.14102969]
[1751315685931,0.26358145,660.69,659.98,1.14102969]
[1751315686130,0.26358145,660.69,659.99,1.14102969]
[1751315686430,0.26358145,660.69,660.0,1.14102969]
[1751315686632,0.26358145,660.69,660.01,1.14102969]
[1751315686833,0.26358145,660.69,659.66,1.1284477]
[1751315687034,0.26358145,660.69,659.94,2.19]
[1751315687237,0.26358145,660.69,659.95,1.13990778]
[1751315687438,0.26358145,660.69,659.96,1.13990778]
[1751315687636,0.26358145,660.69,659.97,1.13990778]
[1751315687836,0.26358145,660.69,659.98,1.13990778]
[1751315688036,0.26358145,660.69,659.99,1.13990778]
[1751315688242,0.26358145,660.69,660.0,1.13990778]
[1751315688535,0.26358145,660.69,660.01,1.13990778]
[1751315688741,0.26358145,660.69,660.02,1.13990778]
[1751315688942,0.26358145,660.69,659.94,2.19]
[1751315689242,0.26358145,660.69,659.95,1.1405636]
[1751315689541,0.26358145,660.69,659.96,1.1405636]
[1751315689745,0.26358145,660.69,659.97,1.1405636]
[1751315689945,0.26358145,660.69,659.98,1.1405636]
[1751315690245,0.26358145,660.69,659.99,1.1405636]
[1751315690445,0.26358145,660.69,660.0,1.1405636]
[1751315690646,0.26358145,660.69,660.01,1.1405636]
[1751315690847,0.26358145,660.69,660.02,1.1405636]
[1751315691146,0.26358145,660.69,659.94,2.19]
[1751315691343,0.26358145,660.69,659.95,1.13990204]
[1751315691646,0.26358145,660.69,659.96,1.13990204]
[1751315691841,0.26358145,660.69,659.97,1.13990204]
[1751315692041,0.26358145,660.69,659.98,1.13990204]
[1751315692246,0.26358145,660.69,659.99,1.13990204]
[1751315692546,0.26358145,660.69,660.0,1.13990204]
[1751315692747,0.26358145,660.69,660.01,1.13990204]
[1751315692943,0.26358145,660.69,660.02,1.13990204]
[1751315693143,0.26358145,660.69,659.94,2.19]
[1751315693447,0.26358145,660.69,659.95,1.13958288]
[1751315693646,0.26358145,660.69,659.96,1.13958288]
[1751315693844,0.26358145,660.69,659.97,1.13958288]
[1751315694048,0.26358145,660.69,659.98,1.13958288]
[1751315694247,0.26358145,660.69,659.99,1.13958288]
[1751315694447,0.26358145,660.69,660.0,1.13958288]
[1751315694747,0.26358145,660.69,660.01,1.13958288]
[1751315694949,0.26358145,660.69,659.94,2.19]
[1751315695250,0.26358145,660.69,659.95,1.13949151]
[1751315695449,0.26358145,660.69,659.96,1.13949151]
[1751315695645,0.26358145,660.69,659.97,1.13949151]
[1751315695848,0.26358145,660.69,659.98,1.13949151]
[1751315696046,0.26358145,660.69,659.99,1.13949151]
[1751315696247,0.26358145,660.69,660.0,1.13949151]
[1751315696448,0.26358145,660.69,659.94,2.19]
[1751315696647,0.26358145,660.69,659.95,1.13931408]
[1751315696846,0.26358145,660.69,659.96,1.13931408]
[1751315697047,0.26358145,660.69,659.97,1.13931408]
[1751315697249,0.26358145,660.69,659.98,1.13931408]
[1751315697450,0.26358145,660.69,659.99,1.13931408]
[1751315697748,0.26358145,660.69,659.94,2.19]
[1751315697946,0.26358145,660.69,659.95,1.1392114]
[1751315698151,0.26358145,660.69,659.96,1.1392114]
[1751315698351,0.26358145,660.69,659.97,1.1392114]
[1751315698553,0.26358145,660.69,659.98,1.1392114]
[1751315698847,0.26358145,660.69,659.99,1.1392114]
[1751315699052,0.26358145,660.69,659.94,2.19]
[1751315699249,0.26358145,660.69,659.95,1.13912172]
[1751315699549,0.26358145,660.69,659.96,1.13912172]
[1751315699750,0.26358145,660.69,659.97,1.13912172]
[1751315699948,0.26358145,660.69,659.94,2.19]
[1751315699949,0.26358145,660.69,659.98,1.13912172]
[1751315700154,0.26358145,660.69,659.99,1.13912172]
[1751315700452,0.26358145,660.69,659.94,2.19]
[1751315700649,0.26358145,660.69,659.95,1.13903708]
[1751315700952,0.26358145,660.69,659.96,1.13903708]
[1751315701251,0.26358145,660.69,659.97,1.13903708]
[1751315701449,0.26358145,660.69,659.98,1.13903708]
[1751315701650,0.26358145,660.69,659.99,1.13903708]
[1751315701848,0.26358145,660.69,659.94,2.19]
[1751315702047,0.26358145,660.69,659.95,1.13896776]
[1751315702249,0.26358145,660.69,659.96,1.13896776]
[1751315702449,0.26358145,660.69,659.97,1.13896776]
[1751315702650,0.26358145,660.69,659.98,1.13896776]
[1751315702853,0.26358145,660.69,659.94,2.19]
[1751315703051,0.26358145,660.69,659.95,1.13888158]
[1751315703249,0.26358145,660.69,659.96,1.13888158]
[1751315703550,0.26358145,660.69,659.97,1.13888158]
[1751315703748,0.26358145,660.69,659.98,1.13888158]
[1751315703949,0.26358145,660.69,659.99,1.13888158]
[1751315704150,0.26358145,660.69,659.94,2.19]
[1751315704350,0.26358145,660.69,659.95,1.13878432]
[1751315704552,0.26358145,660.69,659.96,1.13878432]
[1751315704852,0.26358145,660.69,659.97,1.13878432]
[1751315705049,0.26358145,660.69,659.98,1.13878432]
[1751315705249,0.26358145,660.69,659.99,1.13864316]
[1751315705449,0.26358145,660.69,659.94,2.19]
[1751315705750,0.26358145,660.69,659.95,1.13864316]
[1751315705949,0.26358145,660.69,659.96,1.13864316]
[1751315706249,0.26358145,660.69,659.97,1.13864316]
[1751315706449,0.26358145,660.69,659.98,1.13864316]
[1751315706655,0.26358145,660.69,659.99,1.13858152]
[1751315706853,0.26358145,660.69,659.94,2.19]
[1751315707154,0.26358145,660.69,659.95,1.13858152]
[1751315707350,0.26358145,660.69,659.96,1.13858152]
[1751315707653,0.26358145,660.69,659.97,1.13858152]
[1751315707853,0.26358145,660.69,659.98,1.13858152]
[1751315708053,0.26358145,660.69,659.99,1.13858152]
[1751315708254,0.26358145,660.69,660.0,1.13858152]
[1751315708554,0.26358145,660.69,659.94,2.19]
[1751315708752,0.26358145,660.69,659.95,1.13849084]
[1751315708953,0.26358145,660.69,659.96,1.13849084]
[1751315709255,0.26358145,660.69,659.97,1.13849084]
[1751315709556,0.26358145,660.69,659.98,1.13849084]
[1751315709855,0.26358145,660.69,659.99,1.13849084]
[1751315710049,0.26358145,660.69,660.0,1.13849084]
[1751315710250,0.26358145,660.69,659.94,2.19]
[1751315710451,0.26358145,660.69,659.95,1.13842771]
[1751315710653,0.26358145,660.69,659.96,1.13842771]
[1751315710954,0.26358145,660.69,659.97,1.13842771]
[1751315711155,0.26358145,660.69,659.98,1.13842771]
[1751315711358,0.26358145,660.69,659.99,1.13842771]
[1751315711553,0.26358145,660.69,660.0,1.13842771]
[1751315711756,0.26358145,660.69,659.94,2.19]
[1751315711957,0.26358145,660.69,659.95,1.13840914]
[1751315712157,0.26358145,660.69,659.96,1.13840914]
[1751315712454,0.26358145,660.69,659.97,1.13840914]
[1751315712659,0.26358145,660.69,659.98,1.13840914]
[1751315712960,0.26358145,660.69,659.94,2.19]
[1751315713154,0.26358145,660.69,659.95,1.13847929]
[1751315713354,0.26358145,660.69,659.96,1.13847929]
[1751315713655,0.26358145,660.69,659.97,1.13847929]
[1751315713855,0.26358145,660.69,659.98,1.13847929]
[1751315714156,0.26358145,660.69,659.94,2.19]
[1751315714458,0.26358145,660.69,659.95,1.13849418]
[1751315714655,0.26358145,660.69,659.96,1.13849418]
[1751315714858,0.26358145,660.69,659.97,1.13849418]
[1751315715060,0.26358145,660.69,659.98,1.13849418]
[1751315715357,0.26358145,660.69,659.94,2.19]
[1751315715560,0.26358145,660.69,659.95,1.13850999]
[1751315715758,0.26358145,660.69,659.96,1.13850999]
[1751315715957,0.26358145,660.69,659.97,1.13850999]
[1751315716157,0.26358145,660.69,659.98,1.13850999]
[1751315716361,0.26358145,660.69,659.94,2.19]
[1751315716662,0.26358145,660.69,659.95,1.13853146]
[1751315716861,0.26358145,660.69,659.96,1.13853146]
[1751315717062,0.26358145,660.69,659.97,1.13853146]
[1751315717262,0.26358145,660.69,659.94,2.19]
[1751315717463,0.26358145,660.69,659.95,1.13855391]
[1751315717758,0.26358145,660.69,659.96,1.13855391]
[1751315717964,0.26358145,660.69,659.94,2.19]
[1751315718165,0.26358145,660.69,659.95,1.13855609]
[1751315718460,0.26358145,660.69,659.96,1.13855609]
[1751315718663,0.26358145,660.69,659.94,2.19]
[1751315718864,0.26358145,660.69,659.95,1.13832485]
[1751315719064,0.26358145,660.69,659.96,1.13832485]
[1751315719266,0.26358145,660.69,659.94,2.19]
[1751315719564,0.26358145,660.69,659.95,1.13837967]
[1751315719765,0.26358145,660.69,659.96,1.13837967]
[1751315719964,0.26358145,660.69,659.94,2.19]
[1751315720166,0.26358145,660.69,659.95,1.13837967]
[1751315720360,0.26358145,660.69,659.96,1.13837967]
[1751315720564,0.26358145,660.69,659.94,2.19]
[1751315720765,0.26358145,660.69,659.95,1.13844073]
[1751315720962,0.26358145,660.69,659.96,1.13844073]
[1751315721160,0.26358145,660.69,659.94,2.19]
[1751315721362,0.26358145,660.69,659.95,1.13849175]
[1751315721565,0.26358145,660.69,659.96,1.13849175]
[1751315721765,0.26358145,660.69,659.97,1.13849175]
[1751315721966,0.26358145,660.69,659.94,2.19]
[1751315722266,0.26358145,660.69,659.95,1.13850943]
[1751315722463,0.26358145,660.69,659.96,1.13850943]
[1751315722666,0.26358145,660.69,659.94,2.19]
[1751315722868,0.26358145,660.69,659.95,1.13861131]
[1751315723068,0.26358145,660.69,659.96,1.13861131]
[1751315723364,0.26358145,660.69,659.94,2.19]
[1751315724469,0.26358145,660.69,659.95,1.13895032]
[1751315724665,0.26358145,660.69,659.94,2.19]
[1751315724869,0.26358145,660.69,659.95,1.13894979]
[1751315725072,0.26358145,660.69,659.94,2.19]
[1751315725372,0.26358145,660.69,659.95,1.13891611]
[1751315725572,0.26358145,660.69,659.94,2.19]
[1751315725871,0.26358145,660.69,659.95,1.13903009]
[1751315726069,0.26358145,660.69,659.94,2.19]
[1751315726271,0.26358145,660.69,659.95,1.13903009]
[1751315726472,0.26358145,660.69,659.94,2.19]
[1751315726773,0.26358145,660.69,659.95,1.13917614]
[1751315726973,0.26358145,660.69,659.94,2.19]
[1751315727170,0.26358145,660.69,659.95,1.13917834]
[1751315727372,0.26358145,660.69,659.96,1.13917834]
[1751315727670,0.26358145,660.69,659.97,1.13917834]
[1751315727873,0.26358145,660.69,659.98,1.13917834]
[1751315728174,0.26358145,660.69,659.99,1.13917834]
[1751315728473,0.26358145,660.69,660.0,1.13917834]
[1751315728673,0.26358145,660.69,660.01,1.13917834]
[1751315728874,0.26358145,660.69,659.94,2.19]
[1751315729075,0.26358145,660.69,659.95,1.1393418]
[1751315729274,0.26358145,660.69,659.96,1.1393418]
[1751315729475,0.26358145,660.69,659.97,1.1393418]
[1751315729772,0.26358145,660.69,659.98,1.1393418]
[1751315729975,0.26358145,660.69,659.99,1.1393418]
[1751315730176,0.26358145,660.69,660.0,1.1393418]
[1751315730472,0.26358145,660.69,660.01,1.1393418]
[1751315730677,0.26358145,660.69,660.02,1.1393418]
[1751315730876,0.26358145,660.69,659.94,2.19]
[1751315731172,0.26358145,660.69,659.95,1.13966504]
[1751315731374,0.26358145,660.69,659.96,1.13966504]
[1751315731576,0.26358145,660.69,659.97,1.13966504]
[1751315731777,0.26358145,660.69,659.98,1.13966504]
[1751315732073,0.26358145,660.69,659.99,1.13966504]
[1751315732274,0.26358145,660.69,659.94,2.19]
[1751315732275,0.26358145,660.69,660.0,1.13966504]
[1751315732472,0.26358145,660.69,660.01,1.13966504]
[1751315732673,0.26358145,660.69,660.02,1.13966504]
[1751315732874,0.26358145,660.69,660.03,1.13966504]
[1751315733076,0.26358145,660.69,659.94,2.19]
[1751315733274,0.26358145,660.69,659.95,1.14005443]
[1751315733575,0.26358145,660.69,659.96,1.14005443]
[1751315733775,0.26358145,660.69,659.97,1.14005443]
[1751315733976,0.26358145,660.69,659.98,1.14005443]
[1751315734175,0.26358145,660.69,659.99,1.14005443]
[1751315734378,0.26358145,660.69,660.0,1.14005443]
[1751315734580,0.26358145,660.69,660.01,1.14005443]
[1751315734776,0.26358145,660.69,660.02,1.14005443]
[1751315734980,0.26358145,660.69,659.94,2.19]
[1751315736082,0.26358145,660.69,659.95,1.14038063]
[1751315736384,0.26358145,660.69,659.94,2.19]
[1751315736385,0.26358145,660.69,659.96,1.14038063]
[1751315736580,0.26358145,660.69,659.97,1.14038063]
[1751315736780,0.26358145,660.69,659.98,1.14038063]
[1751315736983,0.26358145,660.69,659.99,1.14038063]
[1751315737184,0.26358145,660.69,660.0,1.14038063]
[1751315737382,0.26358145,660.69,660.01,1.14038063]
[1751315737682,0.26358145,660.69,660.02,1.14038063]
[1751315737881,0.26358145,660.69,660.03,1.14038063]
[1751315738085,0.26358145,660.69,660.04,1.14038063]
[1751315738283,0.26358145,660.69,659.94,2.19]
[1751315738485,0.26358145,660.69,659.95,1.14077265]
[1751315738682,0.26358145,660.69,659.96,1.14077265]
[1751315738887,0.26358145,660.69,659.97,1.14077265]
[1751315739085,0.26358145,660.69,659.94,2.19]
[1751315739086,0.26358145,660.69,659.98,1.14077265]
[1751315739284,0.26358145,660.69,659.99,1.14077265]
[1751315739484,0.26358145,660.69,660.0,1.14077265]
[1751315739688,0.26358145,660.69,660.01,1.14077265]
[1751315739987,0.26358145,660.69,660.02,1.14077265]
[1751315740187,0.26358145,660.69,660.03,1.14077265]
[1751315740483,0.26358145,660.69,660.04,1.14077265]
[1751315740683,0.26358145,660.69,660.05,1.14077265]
[1751315740987,0.26358145,660.69,659.94,2.19]
[1751315741288,0.26358145,660.69,659.95,1.14109508]
[1751315741484,0.26358145,660.69,659.96,1.14109508]
[1751315741788,0.26358145,660.69,659.97,1.14109508]
[1751315742086,0.26358145,660.69,659.98,1.14109508]
[1751315742288,0.26358145,660.69,659.99,1.14109508]
[1751315742488,0.26358145,660.69,660.0,1.14109508]
[1751315742688,0.26358145,660.69,660.01,1.14109508]
[1751315742889,0.26358145,660.69,660.02,1.14109508]
[1751315743085,0.26358145,660.69,660.03,1.14109508]
[1751315743284,0.26358145,660.69,660.04,1.14109508]
[1751315743489,0.26358145,660.69,660.05,1.14109508]
[1751315743685,0.26358145,660.69,660.06,1.14109508]
[1751315743884,0.26358145,660.69,660.07,1.14109508]
[1751315744085,0.26358145,660.69,659.99,2.112]
[1751315744387,0.26358145,660.69,660.0,1.14194583]
[1751315744586,0.26358145,660.69,660.01,1.14194583]
[1751315744891,0.26358145,660.69,660.02,1.14194583]
[1751315745185,0.26358145,660.69,660.03,1.14194583]
[1751315745384,0.26358145,660.69,660.04,1.14194583]
[1751315745587,0.26358145,660.69,660.05,1.14194583]
[1751315745889,0.26358145,660.69,660.06,1.14194583]
[1751315746086,0.26358145,660.69,660.07,1.14194583]
[1751315746290,0.26358145,660.69,660.08,1.14194583]
[1751315746592,0.26358145,660.69,660.09,1.14194583]
[1751315746788,0.26358145,660.69,659.99,2.112]
[1751315746987,0.26358145,660.69,660.0,1.14199004]
[1751315747189,0.26358145,660.69,660.01,1.14199004]
[1751315747393,0.26358145,660.69,660.02,1.14199004]
[1751315747688,0.26358145,660.69,660.03,1.14199004]
[1751315747889,0.26358145,660.69,660.04,1.14199004]
[1751315748091,0.26358145,660.69,660.05,1.14199004]
[1751315748294,0.26358145,660.69,660.06,1.14199004]
[1751315748498,0.26358145,660.69,660.07,1.14199004]
[1751315748798,0.26358145,660.69,660.08,1.14199004]
[1751315748998,0.26358145,660.69,659.99,2.112]
[1751315749297,0.26358145,660.69,660.0,1.14191708]
[1751315749498,0.26358145,660.69,660.01,1.14191708]
[1751315749696,0.26358145,660.69,660.02,1.14191708]
[1751315749898,0.26358145,660.69,660.03,1.14191708]
[1751315750195,0.26358145,660.69,660.04,1.14191708]
[1751315750498,0.26358145,660.69,660.05,1.14191708]
[1751315750695,0.26358145,660.69,660.06,1.14191708]
[1751315750998,0.26358145,660.69,660.07,1.14191708]
[1751315751196,0.26358145,660.69,660.08,1.14191708]
[1751315751495,0.26358145,660.69,659.99,2.112]
[1751315751695,0.26358145,660.69,660.0,1.14188315]
[1751315751894,0.26358145,660.69,660.01,1.14188315]
[1751315752096,0.26358145,660.69,660.02,1.14188315]
[1751315752301,0.26358145,660.69,660.03,1.14188315]
[1751315752597,0.26358145,660.69,660.04,1.14188315]
[1751315752798,0.26358145,660.69,660.05,1.14188315]